lending/lending_fUSD_20250210
["ID","MTS","AMOUNT","RATE_DAILY","PERIOD"]
[352553295,1739164235115,-505.45833049,9.844e-05,2]
[352553296,1739164235124,-506.02401464,9.844e-05,2]
[352553297,1739164235135,-376.47309179,9.844e-05,2]
[352553298,1739164235144,-500.0,9.844e-05,2]
[352553299,1739164235153,-500.0,9.844e-05,2]
[352553300,1739164235162,-225.28358871,9.844e-05,2]
[352553301,1739164235178,-500.0,9.844e-05,2]
[352553302,1739164235187,-500.0,9.844e-05,2]
[352553303,1739164235196,-500.0,9.844e-05,2]
[352553304,1739164235205,-500.0,9.844e-05,2]
[352553305,1739164235215,-500.0,9.844e-05,2]
[352553306,1739164235224,-500.0,9.844e-05,2]
[352553307,1739164235234,-268.49,9.844e-05,2]
[352553308,1739164235245,-500.0,9.844e-05,2]
[352553309,1739164235258,-505.07867709,9.844e-05,2]
[352553310,1739164235267,-500.0,9.844e-05,2]
[352553311,1739164235277,-500.0,9.844e-05,2]
[352553312,1739164235287,-500.0,9.844e-05,2]
[352553313,1739164235297,-500.0,9.844e-05,2]
[352553314,1739164235307,-511.09270309,9.844e-05,2]
[352553315,1739164235317,-500.0,9.844e-05,2]
[352553316,1739164235327,-509.48164724,9.844e-05,2]
[352553317,1739164235337,-500.0,9.844e-05,2]
[352553318,1739164235347,-500.0,9.844e-05,2]
[352553319,1739164235356,-500.0,9.844e-05,2]
[352553320,1739164235366,-500.0,9.844e-05,2]
[352553321,1739164235375,-500.0,9.844e-05,2]
[352553322,1739164235388,-500.0,9.844e-05,2]
[352553323,1739164235406,-500.0,9.844e-05,2]
[352553324,1739164235419,-640.59,9.844e-05,2]
[352553325,1739164235429,-500.0,9.844e-05,2]
[352553326,1739164235439,-500.0,9.844e-05,2]
[352553327,1739164235450,-500.0,9.844e-05,2]
[352553328,1739164235459,-500.0,9.844e-05,2]
[352553329,1739164235469,-500.0,9.844e-05,2]
[352553330,1739164235479,-500.0,9.844e-05,2]
[352553331,1739164235489,-500.0,9.844e-05,2]
[352553332,1739164235499,-500.0,9.844e-05,2]
[352553333,1739164235508,-501.86701556,9.844e-05,2]
[352553334,1739164235519,-504.89048461,9.844e-05,2]
[352553335,1739164235529,-500.0,9.844e-05,2]
[352553336,1739164235539,-500.0,9.844e-05,2]
[352553337,1739164235549,-500.0,9.844e-05,2]
[352553338,1739164235559,-500.0,9.844e-05,2]
[352553339,1739164235568,-500.0,9.844e-05,2]
[352553340,1739164235578,-500.0,9.844e-05,2]
[352553341,1739164235587,-500.0,9.844e-05,2]
[352553342,1739164235597,-500.0,9.844e-05,2]
[352553343,1739164235607,-500.0,9.844e-05,2]
[352553344,1739164235617,-500.0,9.844e-05,2]
[352553345,1739164235626,-500.0,9.844e-05,2]
[352553346,1739164235637,-500.0,9.844e-05,2]
[352553347,1739164235646,-500.0,9.844e-05,2]
[352553348,1739164235656,-500.0,9.844e-05,2]
[352553349,1739164235666,-500.0,9.844e-05,2]
[352553350,1739164235676,-500.0,9.844e-05,2]
[352553351,1739164235685,-34072.75,9.844e-05,2]
[352553352,1739164235695,-500.0,9.844e-05,2]
[352553353,1739164235705,-500.0,9.844e-05,2]
[352553354,1739164235715,-999.99,9.844e-05,2]
[352553355,1739164235724,-150.99,9.844e-05,2]
[352553356,1739164235737,-1779.86,9.844e-05,2]
[352553357,1739164235750,-500.0,9.844e-05,2]
[352553358,1739164235759,-500.0,9.844e-05,2]
[352553359,1739164235768,-500.0,9.844e-05,2]
[352553360,1739164235778,-500.0,9.844e-05,2]
[352553361,1739164235787,-500.0,9.844e-05,2]
[352553362,1739164235797,-500.0,9.844e-05,2]
[352553363,1739164235807,-500.0,9.844e-05,2]
[352553364,1739164235816,-500.0,9.844e-05,2]
[352553365,1739164235826,-500.0,9.844e-05,2]
[352553366,1739164235835,-500.0,9.844e-05,2]
[352553367,1739164235845,-500.0,9.844e-05,2]
[352553368,1739164235854,-500.0,9.844e-05,2]
[352553369,1739164235864,-500.0,9.844e-05,2]
[352553370,1739164235873,-500.0,9.844e-05,2]
[352553371,1739164235884,-500.0,9.844e-05,2]
[352553372,1739164235894,-500.0,9.844e-05,2]
[352553373,1739164235903,-500.0,9.844e-05,2]
[352553374,1739164235913,-500.0,9.844e-05,2]
[352553375,1739164235923,-500.0,9.844e-05,2]
[352553376,1739164235932,-500.0,9.844e-05,2]
[352553377,1739164235941,-500.0,9.844e-05,2]
[352553378,1739164235951,-500.0,9.844e-05,2]
[352553379,1739164235960,-512.00390362,9.844e-05,2]
[352553380,1739164235969,-500.0,9.844e-05,2]
[352553381,1739164235991,-500.0,9.844e-05,2]
[352553382,1739164236000,-500.0,9.844e-05,2]
[352553383,1739164236010,-500.0,9.844e-05,2]
[352553384,1739164236019,-500.0,9.844e-05,2]
[352553385,1739164236030,-500.0,9.844e-05,2]
[352553386,1739164236039,-500.0,9.844e-05,2]
[352553387,1739164236048,-504.37696618,9.844e-05,2]
[352553388,1739164236057,-500.0,9.844e-05,2]
[352553389,1739164236067,-500.0,9.844e-05,2]
[352553390,1739164236076,-500.0,9.844e-05,2]
[352553391,1739164236086,-500.0,9.844e-05,2]
[352553392,1739164236096,-504.25586096,9.844e-05,2]
[352553393,1739164236106,-581.07,9.844e-05,2]
[352553394,1739164236115,-500.0,9.844e-05,2]
[352553395,1739164236124,-503.55693147,9.844e-05,2]
[352553396,1739164236135,-500.0,9.844e-05,2]
[352553397,1739164236144,-451.88294542,9.844e-05,2]
[352553398,1739164236153,-500.0,9.844e-05,2]
[352553399,1739164236162,-349.89196337,9.844e-05,2]
[352553400,1739164236180,-150.10803663,9.844e-05,2]
[352553401,1739164236189,-500.0,9.844e-05,2]
[352553402,1739164236198,-500.0,9.844e-05,2]
[352553403,1739164236207,-604.17,9.844e-05,2]
[352553404,1739164236216,-500.0,9.844e-05,2]
[352553405,1739164236226,-500.0,9.844e-05,2]
[352553406,1739164236235,-500.0,9.844e-05,2]
[352553407,1739164236246,-500.0,9.844e-05,2]
[352553408,1739164236257,-500.0,9.844e-05,2]
[352553409,1739164236266,-500.0,9.844e-05,2]
[352553410,1739164236275,-500.0,9.844e-05,2]
[352553411,1739164236284,-500.0,9.844e-05,2]
[352553412,1739164236294,-500.0,9.844e-05,2]
[352553413,1739164236303,-500.0,9.844e-05,2]
[352553414,1739164236312,-500.0,9.844e-05,2]
[352553415,1739164236321,-500.0,9.844e-05,2]
[352553416,1739164236331,-568.48312859,9.844e-05,2]
[352553417,1739164236340,-500.0,9.844e-05,2]
[352553418,1739164236349,-500.0,9.844e-05,2]
[352553419,1739164236358,-500.0,9.844e-05,2]
[352553420,1739164236367,-360.23883478,9.844e-05,2]
[352553421,1739164236379,-143.04430892,9.844e-05,2]
[352553422,1739164236389,-3876.15569108,9.845e-05,2]
[352553423,1739164236414,-6702.90292869,9.845e-05,2]
[352553424,1739164236425,-25860.81470262,9.845e-05,2]
[352553425,1739164236444,-429.21021427,9.845e-05,2]
[352553426,1739164236456,-624.0,9.845e-05,2]
[352553427,1739164236467,-315.0,9.845e-05,2]
[352553428,1739164236479,-252.5,9.845e-05,2]
[352553429,1739164236490,-6338.60000004,9.845e-05,2]
[352553430,1739164236501,-5068.89012956,9.845e-05,2]
[352553431,1739164236513,-503.4735659,9.845e-05,2]
[352553432,1739164236524,-11490.886551,9.845e-05,2]
[352553435,1739164238266,-4848.43995697,8.973e-05,2]
[352553436,1739164238277,-500.0,9.844e-05,2]
[352553437,1739164238287,-500.0,9.844e-05,2]
[352553438,1739164238298,-5766.57561138,9.845e-05,2]
[352553439,1739164238310,-4969.168468,9.845e-05,2]
[352553440,1739164238323,-11341.45376007,9.845e-05,2]
[352553602,1739164240184,-500.0,9.843e-05,2]
[352553604,1739164240194,-500.0,9.844e-05,2]
[352553606,1739164240203,-68396.51312164,9.845e-05,2]
[352553890,1739164243097,-301.62258698,9.843e-05,2]
[352553892,1739164243109,-331.81741302,9.843e-05,2]
[352553894,1739164243119,-500.0,9.844e-05,2]
[352553896,1739164243128,-500.0,9.844e-05,2]
[352553897,1739164243139,-80045.98223643,9.845e-05,2]
[352553899,1739164243148,-500.0,9.846e-05,2]
[352553902,1739164243157,-556.15,9.846e-05,2]
[352553904,1739164243166,-500.0,9.846e-05,2]
[352553907,1739164243174,-596.94,9.846e-05,2]
[352553910,1739164243183,-500.0,9.846e-05,2]
[352553911,1739164243192,-500.0,9.846e-05,2]
[352553915,1739164243202,-500.0,9.846e-05,2]
[352553917,1739164243211,-500.0,9.846e-05,2]
[352553921,1739164243220,-500.0,9.846e-05,2]
[352553923,1739164243230,-500.0,9.846e-05,2]
[352553925,1739164243239,-500.0,9.846e-05,2]
[352553929,1739164243248,-500.0,9.846e-05,2]
[352553932,1739164243262,-500.0,9.846e-05,2]
[352553935,1739164243272,-500.0,9.846e-05,2]
[352553937,1739164243281,-500.0,9.846e-05,2]
[352553940,1739164243290,-500.0,9.846e-05,2]
[352553943,1739164243301,-500.0,9.846e-05,2]
[352553946,1739164243310,-527.56,9.846e-05,2]
[352553949,1739164243320,-500.0,9.846e-05,2]
[352553952,1739164243330,-500.0,9.846e-05,2]
[352553955,1739164243340,-213.06061717,9.846e-05,2]
[352553958,1739164243349,-621.96168493,9.846e-05,2]
[352553960,1739164243358,-500.0,9.847e-05,2]
[352553963,1739164243367,-500.0,9.847e-05,2]
[352553965,1739164243376,-500.0,9.847e-05,2]
[352553967,1739164243385,-507.20555923,9.847e-05,2]
[352553969,1739164243396,-500.0,9.847e-05,2]
[352553971,1739164243406,-500.0,9.847e-05,2]
[352553973,1739164243415,-506.02774797,9.847e-05,2]
[352553975,1739164243424,-500.0,9.847e-05,2]
[352553977,1739164243434,-369.49939739,9.847e-05,2]
[352553979,1739164243443,-500.0,9.847e-05,2]
[352553981,1739164243452,-500.0,9.847e-05,2]
[352553983,1739164243462,-500.0,9.847e-05,2]
[352553985,1739164243472,-508.77886033,9.847e-05,2]
[352553987,1739164243482,-500.0,9.847e-05,2]
[352553989,1739164243491,-502.79136194,9.847e-05,2]
[352553991,1739164243500,-500.0,9.847e-05,2]
[352553993,1739164243509,-500.0,9.847e-05,2]
[352553994,1739164243519,-500.0,9.847e-05,2]
[352553997,1739164243528,-500.0,9.847e-05,2]
[352553999,1739164243537,-562.55656615,9.847e-05,2]
[352554001,1739164243547,-503.42552642,9.847e-05,2]
[352554003,1739164243557,-500.0,9.847e-05,2]
[352554005,1739164243569,-526.45,9.847e-05,2]
[352554007,1739164243579,-505.99151233,9.847e-05,2]
[352554009,1739164243588,-500.0,9.847e-05,2]
[352554011,1739164243598,-500.0,9.847e-05,2]
[352554013,1739164243608,-500.0,9.847e-05,2]
[352554015,1739164243617,-500.0,9.847e-05,2]
[352554017,1739164243627,-500.0,9.847e-05,2]
[352554019,1739164243636,-392.62649858,9.847e-05,2]
[352554021,1739164243646,-500.0,9.847e-05,2]
[352554023,1739164243655,-500.0,9.847e-05,2]
[352554025,1739164243665,-500.0,9.847e-05,2]
[352554027,1739164243674,-500.0,9.847e-05,2]
[352554029,1739164243683,-500.0,9.847e-05,2]
[352554031,1739164243692,-500.0,9.847e-05,2]
[352554033,1739164243701,-500.0,9.847e-05,2]
[352554035,1739164243710,-330.04666086,9.847e-05,2]
[352554037,1739164243720,-608.70422332,9.847e-05,2]
[352554039,1739164243728,-500.0,9.847e-05,2]
[352554041,1739164243738,-500.0,9.847e-05,2]
[352554043,1739164243748,-500.0,9.847e-05,2]
[352554045,1739164243757,-500.0,9.847e-05,2]
[352554047,1739164243766,-500.0,9.847e-05,2]
[352554049,1739164243775,-500.0,9.847e-05,2]
[352554050,1739164243784,-500.0,9.847e-05,2]
[352554052,1739164243793,-500.0,9.847e-05,2]
[352554054,1739164243803,-500.0,9.847e-05,2]
[352554056,1739164243812,-500.0,9.847e-05,2]
[352554058,1739164243821,-500.0,9.847e-05,2]
[352554060,1739164243830,-500.0,9.847e-05,2]
[352554062,1739164243839,-500.0,9.847e-05,2]
[352554064,1739164243849,-500.0,9.847e-05,2]
[352554065,1739164243858,-505.79052929,9.847e-05,2]
[352554067,1739164243867,-500.0,9.847e-05,2]
[352554069,1739164243876,-500.0,9.847e-05,2]
[352554071,1739164243886,-393.71910862,9.847e-05,2]
[352554073,1739164243895,-512.08709066,9.847e-05,2]
[352554075,1739164243905,-500.0,9.847e-05,2]
[352554077,1739164243914,-500.0,9.847e-05,2]
[352554079,1739164243923,-500.0,9.847e-05,2]
[352554081,1739164243933,-504.07975324,9.847e-05,2]
[352554083,1739164243942,-507.99921502,9.847e-05,2]
[352554085,1739164243951,-500.0,9.847e-05,2]
[352554087,1739164243960,-500.0,9.847e-05,2]
[352554089,1739164243970,-511.85982179,9.847e-05,2]
[352554091,1739164243979,-515.50131295,9.847e-05,2]
[352554093,1739164243988,-503.48320087,9.847e-05,2]
[352554095,1739164243998,-506.33640166,9.847e-05,2]
[352554097,1739164244007,-509.15037744,9.847e-05,2]
[352554099,1739164244017,-558.00643698,9.847e-05,2]
[352554101,1739164244026,-158.81707603,9.847e-05,2]
[352554103,1739164244036,-500.0,9.847e-05,2]
[352554105,1739164244045,-508.61222388,9.847e-05,2]
[352554107,1739164244055,-500.0,9.847e-05,2]
[352554109,1739164244065,-540.09086533,9.847e-05,2]
[352554111,1739164244075,-500.0,9.847e-05,2]
[352554112,1739164244085,-508.26938503,9.847e-05,2]
[352554114,1739164244095,-505.61012689,9.847e-05,2]
[352554117,1739164244104,-500.0,9.847e-05,2]
[352554119,1739164244114,-500.0,9.847e-05,2]
[352554120,1739164244123,-500.0,9.87e-05,2]
[352554122,1739164244133,-2539.764,9.897e-05,2]
[352554124,1739164244146,-172.89,9.897e-05,2]
[352554126,1739164244156,-1290.0,9.9e-05,2]
[352554128,1739164244167,-150.0,9.901e-05,2]
[352554130,1739164244176,-150.0,9.901e-05,2]
[352554132,1739164244186,-237.423,9.901e-05,2]
[352554134,1739164244195,-284.978,9.901e-05,2]
[352554136,1739164244205,-150.491,9.901e-05,2]
[352554138,1739164244215,-1273.0,9.901e-05,2]
[352554140,1739164244225,-2024.0,9.901e-05,2]
[352554142,1739164244234,-638.0,9.901e-05,2]
[352554144,1739164244246,-569.0,9.901e-05,2]
[352554146,1739164244259,-1827.0,9.901e-05,2]
[352554149,1739164244271,-783.0,9.901e-05,2]
[352554151,1739164244281,-907.0,9.901e-05,2]
[352554152,1739164244291,-2955.0,9.901e-05,2]
[352554154,1739164244302,-1265.0,9.901e-05,2]
[352554156,1739164244311,-539.0,9.901e-05,2]
[352554158,1739164244321,-4025.0,9.901e-05,2]
[352554160,1739164244331,-1007.0,9.901e-05,2]
[352554162,1739164244342,-150.0,9.901e-05,2]
[352554164,1739164244352,-3914.0,9.901e-05,2]
[352554166,1739164244361,-1109.0,9.901e-05,2]
[352554168,1739164244371,-500.0,9.972e-05,2]
[352554170,1739164244381,-500.0,9.972e-05,2]
[352554172,1739164244392,-500.0,9.972e-05,2]
[352554174,1739164244402,-500.0,9.972e-05,2]
[352554176,1739164244412,-500.0,9.972e-05,2]
[352554178,1739164244422,-500.0,9.972e-05,2]
[352554180,1739164244432,-500.0,9.972e-05,2]
[352554182,1739164244442,-500.0,9.972e-05,2]
[352554185,1739164244452,-500.0,9.98e-05,2]
[352554186,1739164244463,-500.0,9.98e-05,2]
[352554188,1739164244473,-500.0,9.98e-05,2]
[352554191,1739164244483,-500.0,9.98e-05,2]
[352554193,1739164244492,-500.0,9.98e-05,2]
[352554195,1739164244503,-500.0,9.98e-05,2]
[352554197,1739164244512,-500.0,9.98e-05,2]
[352554199,1739164244522,-500.0,9.98e-05,2]
[352554200,1739164244532,-500.0,9.98e-05,2]
[352554202,1739164244541,-500.0,9.98e-05,2]
[352554204,1739164244551,-500.0,9.98e-05,2]
[352554206,1739164244560,-500.0,9.98e-05,2]
[352554208,1739164244570,-415.61,9.98e-05,2]
[352554210,1739164244580,-500.0,9.98e-05,2]
[352554212,1739164244592,-500.0,9.98e-05,2]
[352554214,1739164244603,-500.0,9.98e-05,2]
[352554216,1739164244612,-500.0,9.98e-05,2]
[352554218,1739164244621,-500.0,9.98e-05,2]
[352554220,1739164244630,-500.0,9.98e-05,2]
[352554222,1739164244642,-500.0,9.98e-05,2]
[352554224,1739164244652,-500.0,9.98e-05,2]
[352554226,1739164244662,-366.64,9.98e-05,2]
[352554228,1739164244671,-500.0,9.98e-05,2]
[352554230,1739164244680,-500.0,9.98e-05,2]
[352554232,1739164244690,-500.0,9.98e-05,2]
[352554234,1739164244699,-500.0,9.98e-05,2]
[352554236,1739164244708,-500.0,9.98e-05,2]
[352554238,1739164244718,-458.07,9.98e-05,2]
[352554240,1739164244728,-500.0,9.981e-05,2]
[352554242,1739164244737,-297.77,9.981e-05,2]
[352554244,1739164244748,-329.09,9.981e-05,2]
[352554246,1739164244761,-274.56,9.981e-05,2]
[352554248,1739164244774,-507.63199583,9.981e-05,2]
[352554250,1739164244786,-365.75408115,9.981e-05,2]
[352554252,1739164244795,-500.0,9.981e-05,2]
[352554254,1739164244804,-509.03130409,9.981e-05,2]
[352554256,1739164244814,-500.0,9.981e-05,2]
[352554258,1739164244823,-504.1112018,9.981e-05,2]
[352554260,1739164244832,-209.42,9.981e-05,2]
[352554262,1739164244841,-500.0,9.981e-05,2]
[352554264,1739164244851,-512.84339118,9.981e-05,2]
[352554266,1739164244861,-500.0,9.981e-05,2]
[352554268,1739164244871,-500.0,9.981e-05,2]
[352554270,1739164244880,-500.0,9.981e-05,2]
[352554272,1739164244891,-500.0,9.981e-05,2]
[352554274,1739164244900,-500.0,9.981e-05,2]
[352554276,1739164244910,-500.0,9.981e-05,2]
[352554278,1739164244920,-500.0,9.981e-05,2]
[352554280,1739164244929,-391.59,9.981e-05,2]
[352554282,1739164244939,-500.0,9.981e-05,2]
[352554284,1739164244949,-500.0,9.981e-05,2]
[352554286,1739164244963,-500.0,9.981e-05,2]
[352554288,1739164244973,-500.0,9.981e-05,2]
[352554290,1739164244984,-500.0,9.981e-05,2]
[352554292,1739164244994,-295.45,9.981e-05,2]
[352554294,1739164245003,-500.0,9.981e-05,2]
[352554296,1739164245013,-500.0,9.981e-05,2]
[352554298,1739164245023,-500.0,9.981e-05,2]
[352554300,1739164245032,-500.0,9.981e-05,2]
[352554302,1739164245042,-500.0,9.981e-05,2]
[352554304,1739164245052,-500.0,9.981e-05,2]
[352554306,1739164245061,-500.0,9.981e-05,2]
[352554308,1739164245071,-274.74,9.981e-05,2]
[352554310,1739164245080,-500.0,9.981e-05,2]
[352554312,1739164245090,-500.0,9.981e-05,2]
[352554314,1739164245100,-500.0,9.981e-05,2]
[352554316,1739164245110,-311.28,9.981e-05,2]
[352554318,1739164245119,-500.0,9.981e-05,2]
[352554320,1739164245128,-500.0,9.981e-05,2]
[352554322,1739164245139,-500.0,9.981e-05,2]
[352554324,1739164245148,-326.51,9.981e-05,2]
[352554326,1739164245157,-500.0,9.981e-05,2]
[352554327,1739164245166,-1779.86,9.981e-05,2]
[352554330,1739164245177,-500.0,9.981e-05,2]
[352554332,1739164245186,-395.54,9.981e-05,2]
[352554334,1739164245196,-500.0,9.981e-05,2]
[352554336,1739164245206,-500.0,9.981e-05,2]
[352554338,1739164245215,-500.0,9.981e-05,2]
[352554340,1739164245225,-509.98948673,9.981e-05,2]
[352554342,1739164245235,-500.0,9.981e-05,2]
[352554344,1739164245244,-500.0,9.981e-05,2]
[352554346,1739164245257,-500.0,9.981e-05,2]
[352554347,1739164245266,-349.59,9.981e-05,2]
[352554349,1739164245276,-500.0,9.981e-05,2]
[352554351,1739164245286,-360.47470218,9.981e-05,2]
[352554354,1739164245297,-500.0,9.981e-05,2]
[352554355,1739164245306,-376.14,9.981e-05,2]
[352554357,1739164245316,-503.81738948,9.981e-05,2]
[352554359,1739164245327,-500.0,9.981e-05,2]
[352554362,1739164245339,-500.0,9.981e-05,2]
[352554364,1739164245348,-503.67385445,9.981e-05,2]
[352554366,1739164245358,-392.19,9.981e-05,2]
[352554371,1739164245403,-500.0,9.981e-05,2]
[352554373,1739164245413,-514.77234467,9.981e-05,2]
[352554375,1739164245423,-500.0,9.981e-05,2]
[352554377,1739164245433,-501.85589534,9.981e-05,2]
[352554379,1739164245442,-522.37,9.981e-05,2]
[352554381,1739164245452,-500.0,9.981e-05,2]
[352554383,1739164245461,-500.0,9.981e-05,2]
[352554385,1739164245471,-500.0,9.981e-05,2]
[352554387,1739164245481,-500.0,9.981e-05,2]
[352554389,1739164245490,-500.0,9.981e-05,2]
[352554391,1739164245500,-500.0,9.981e-05,2]
[352554393,1739164245509,-500.0,9.981e-05,2]
[352554395,1739164245519,-500.0,9.981e-05,2]
[352554396,1739164245528,-500.0,9.981e-05,2]
[352554398,1739164245538,-500.0,9.981e-05,2]
[352554400,1739164245548,-500.0,9.981e-05,2]
[352554402,1739164245557,-500.0,9.981e-05,2]
[352554404,1739164245567,-500.0,9.981e-05,2]
[352554406,1739164245577,-514.4266744,9.983e-05,2]
[352554408,1739164245587,-295.2,9.983e-05,2]
[352554410,1739164245598,-475.88492283,9.983e-05,2]
[352554412,1739164245608,-413.24,9.983e-05,2]
[352554414,1739164245618,-429.91,9.983e-05,2]
[352554416,1739164245627,-500.0,9.983e-05,2]
[352554418,1739164245637,-574.79876355,9.984e-05,2]
[352554420,1739164245648,-500.0,9.984e-05,2]
[352554422,1739164245657,-504.01306485,9.984e-05,2]
[352554424,1739164245667,-500.0,9.984e-05,2]
[352554426,1739164245676,-500.0,9.984e-05,2]
[352554428,1739164245686,-4741.3836523,9.99e-05,2]
[352554430,1739164245696,-8559.8495025,9.99e-05,2]
[352554432,1739164245705,-1871.3707296,9.99e-05,2]
[352554434,1739164245714,-266.2247966,9.99e-05,2]
[352554436,1739164245730,-883.6280955,9.99e-05,2]
[352554438,1739164245739,-658.46444811,9.997e-05,2]
[352554440,1739164245748,-500.0,9.998e-05,2]
[352554442,1739164245758,-500.0,9.998e-05,2]
[352554444,1739164245766,-507.5,9.998e-05,2]
[352554446,1739164245775,-505.75739207,9.998e-05,2]
[352554448,1739164245784,-504.89189713,9.998e-05,2]
[352554450,1739164245794,-500.0,9.998e-05,2]
[352554452,1739164245803,-500.0,9.998e-05,2]
[352554454,1739164245813,-500.0,9.998e-05,2]
[352554456,1739164245822,-500.0,9.998e-05,2]
[352554458,1739164245831,-500.0,9.998e-05,2]
[352554460,1739164245840,-500.0,9.998e-05,2]
[352554461,1739164245849,-500.0,9.998e-05,2]
[352554463,1739164245859,-500.0,9.998e-05,2]
[352554465,1739164245868,-505.26736299,9.998e-05,2]
[352554467,1739164245878,-521.75340907,9.998e-05,2]
[352554469,1739164245889,-500.0,9.998e-05,2]
[352554471,1739164245899,-187.09794644,9.998e-05,2]
[352554474,1739164245909,-530.05258272,9.998e-05,2]
[352554476,1739164245918,-500.0,9.998e-05,2]
[352554479,1739164245928,-500.0,9.998e-05,2]
[352554481,1739164245937,-160.7445331,9.998e-05,2]
[352554483,1739164245946,-500.0,9.998e-05,2]
[352554485,1739164245956,-500.0,9.998e-05,2]
[352554486,1739164245965,-500.0,9.998e-05,2]
[352554488,1739164245974,-500.0,9.998e-05,2]
[352554490,1739164245983,-500.0,9.999e-05,2]
[352554492,1739164245992,-500.0,9.999e-05,2]
[352554494,1739164246001,-564.45432744,9.999e-05,2]
[352554496,1739164246010,-1435.0,0.0001,2]
[352554498,1739164246020,-109008.40794083,0.0001,2]
[352554501,1739164246035,-4275.5011,0.0001,2]
[352554503,1739164246045,-1060.54499947,0.0001,2]
[352554505,1739164246056,-512.99306584,0.0001,2]
[352554509,1739164246080,-500.0,9.844e-05,2]
[352554511,1739164246090,-471.4300002,0.0001,2]
[352554513,1739164246101,-74164.38696688,0.0001,2]
[352554531,1739164246408,-500.0,9.843e-05,2]
[352554533,1739164246418,-500.0,9.844e-05,2]
[352554535,1739164246428,-500.0,9.98e-05,2]
[352554537,1739164246438,-500.0,9.981e-05,2]
[352554539,1739164246447,-500.0,9.981e-05,2]
[352554541,1739164246456,-161069.57435115,0.0001,2]
[352554543,1739164246466,-1851.16993165,0.0001,2]
[352554545,1739164246475,-212756.84197619,0.0001,2]
[352554547,1739164246484,-236376.80899693,0.0001,2]
[352554549,1739164246493,-3500.000001,0.0001,2]
[352554551,1739164246502,-150.0,0.0001,2]
[352554553,1739164246511,-177.30214877,0.0001,2]
[352554555,1739164246521,-150.0,0.0001,2]
[352554557,1739164246530,-150.0,0.0001,2]
[352554559,1739164246540,-150.0,0.0001,2]
[352554561,1739164246549,-5179.24841175,0.0001,2]
[352554563,1739164246559,-2466.72595742,0.0001,2]
[352554565,1739164246568,-25707.99234427,0.0001,2]
[352554566,1739164246578,-3650.85741615,0.0001,2]
[352554568,1739164246587,-2877.157,0.0001,2]
[352554570,1739164246597,-453.62727532,0.0001,2]
[352554572,1739164246606,-319853.53099196,0.0001,2]
[352554575,1739164246618,-10552.89354712,0.0001,2]
[352554579,1739164246652,-171511.9912207,0.0001,2]
[352554582,1739164246672,-527.077714,0.0001,2]
[352554585,1739164246691,-408.14776111,0.0001,2]
[352555368,1739165432353,-455.34888028,8.219e-05,2]
[352555369,1739165432368,-720.33111972,8.219e-05,2]
[352555370,1739165432377,-23.60310995,9e-05,2]
[352555371,1739165432390,-126.39689005,9e-05,2]
[352555372,1739165432399,-242.34772194,9e-05,2]
[352555373,1739165432408,-150.0,9e-05,2]
[352555374,1739165432417,-160.86609231,9.082e-05,2]
[352555375,1739165432429,-651.3003,9.082e-05,2]
[352555376,1739165432440,-187.83360769,9.082e-05,2]
[352555377,1739165432449,-309.45538931,9.119e-05,2]
[352555378,1739165432467,-252.5,9.119e-05,2]
[352555379,1739165432479,-420.0,9.119e-05,2]
[352555380,1739165432490,-988.3344858,9.119e-05,2]
[352555381,1739165432501,-993.732985,9.119e-05,2]
[352555382,1739165432513,-402.92919909,9.119e-05,2]
[352555383,1739165432565,-744.5572046,9.119e-05,2]
[352555384,1739165432577,-1521.52022371,9.119e-05,2]
[352555385,1739165432588,-2059.90069911,9.119e-05,2]
[352555386,1739165432600,-578.57796794,9.119e-05,2]
[352555387,1739165432624,-4309.99184544,9.119e-05,2]
[352555388,1739165432640,-250.0,9.136e-05,2]
[352555389,1739165432650,-215.88,9.147e-05,2]
[352555390,1739165432659,-426.018105,9.424e-05,2]
[352555391,1739165432672,-996.04733761,9.424e-05,2]